bitfinex-derivatives/quotes_BTCF0:USTF0_20241223
["timestamp","ask_amount","ask_price","bid_price","bid_amount"]
[1734954513449,0.06494872,95875.0,95873.0,0.012]
[1734954514643,0.01173772,95875.0,95870.0,0.00011957]
[1734954514844,0.052211,95874.0,95873.0,0.002]
[1734954515544,0.052211,95874.0,95870.0,0.00011957]
[1734954515545,0.052213,95871.0,95870.0,0.00011957]
[1734954517746,0.056213,95871.0,95870.0,0.00011957]
[1734954518248,0.052213,95871.0,95870.0,0.00011957]
[1734954518943,0.055213,95871.0,95870.0,0.00011957]
[1734954520241,0.056213,95871.0,95870.0,0.00011957]
[1734954520751,0.057213,95871.0,95870.0,0.00011957]
[1734954521050,0.058213,95871.0,95870.0,0.00011957]
[1734954523054,0.058213,95871.0,95861.0,0.1201]
[1734954523356,0.052218,95862.0,95861.0,0.1201]
[1734954527165,0.14506104,95862.0,95861.0,0.1201]
[1734954528548,0.052218,95862.0,95861.0,0.1201]
[1734954540359,0.17600872,95862.0,95861.0,0.1201]
[1734954541863,0.17600872,95862.0,95861.0,0.30774089]
[1734954543067,0.052218,95862.0,95861.0,0.30774089]
[1734954544268,0.052218,95862.0,95861.0,0.1201]
[1734954544768,0.15437744,95864.0,95863.0,0.052217]
[1734954545075,0.00156497,95882.0,95863.0,0.052217]
[1734954545076,0.00156497,95882.0,95880.0,0.052208]
[1734954545267,0.00156497,95882.0,95880.0,0.413008]
[1734954545773,0.00156497,95882.0,95881.0,0.0409]
[1734954546363,0.00156497,95882.0,95881.0,0.4017]
[1734954546862,0.052203,95890.0,95881.0,0.4017]
[1734954547066,0.052203,95890.0,95889.0,0.3608]
[1734954547461,0.14518009,95890.0,95889.0,0.3608]
[1734954547864,0.09297709,95890.0,95889.0,0.413003]
[1734954548064,0.09597709,95890.0,95889.0,0.413003]
[1734954549061,0.003,95890.0,95889.0,0.413003]
[1734954549372,0.09308113,95894.0,95893.0,0.052201]
[1734954550464,0.00010404,95894.0,95893.0,0.052201]
[1734954550668,0.09297709,95905.0,95904.0,0.052195]
[1734954550869,0.09297709,95905.0,95904.0,0.412995]
[1734954551572,0.09309519,95905.0,95904.0,0.412995]
[1734954552075,0.0001181,95905.0,95904.0,0.412995]
[1734954552260,0.0061181,95905.0,95904.0,0.413995]
[1734954552464,0.0061181,95905.0,95904.0,0.3618]
[1734954552774,0.0081181,95905.0,95904.0,0.3618]
[1734954555374,0.0081181,95905.0,95904.0,0.37341496]
[1734954559482,0.0081181,95905.0,95904.0,0.41251496]
[1734954561785,0.0081181,95905.0,95904.0,0.45441496]
[1734954562187,0.3608,95920.0,95919.0,0.052187]
[1734954562383,0.00156451,95923.0,95922.0,0.052185]
[1734954562785,0.09297709,95925.0,95922.0,0.052185]
[1734954562987,0.09297709,95925.0,95919.0,0.3608]
[1734954562988,0.09297709,95925.0,95924.0,0.052184]
[1734954563184,0.09297709,95925.0,95919.0,0.3608]
[1734954563185,0.09297709,95931.0,95929.0,0.052181]
[1734954563377,0.14515709,95931.0,95929.0,0.052181]
[1734954564473,0.05218,95931.0,95929.0,0.052181]
[1734954564986,0.0419,95930.0,95929.0,0.052181]
[1734954565489,0.0419,95930.0,95929.0,0.004]
[1734954565690,0.094081,95930.0,95929.0,0.004]
[1734954565980,0.094081,95930.0,95929.0,0.002]
[1734954566185,0.094081,95930.0,95929.0,0.007]
[1734954572377,0.0419,95930.0,95929.0,0.007]
[1734954572583,0.09297709,95934.0,95929.0,0.007]
[1734954573288,0.05218,95931.0,95929.0,0.007]
[1734954574499,0.05218,95931.0,95929.0,0.006]
[1734954574685,0.05218,95931.0,95929.0,0.003]
[1734954575191,0.05218,95931.0,95929.0,0.001]
[1734954575387,0.05218,95931.0,95929.0,0.005]
[1734954575688,0.05218,95931.0,95929.0,0.006]
[1734954576792,0.17614946,95931.0,95929.0,0.006]
[1734954577883,0.17614946,95931.0,95929.0,0.058181]
[1734954578289,0.05218,95931.0,95929.0,0.058181]
[1734954578884,0.052181,95930.0,95929.0,0.006]
[1734954580181,0.15490207,95935.0,95929.0,0.006]
[1734954580387,0.052179,95933.0,95932.0,0.05218]
[1734954580588,0.15490207,95935.0,95929.0,0.006]
[1734954580589,0.05218,95932.0,95929.0,0.006]
[1734954581190,0.052181,95930.0,95929.0,0.006]
[1734954587788,0.052181,95930.0,95919.0,0.37192683]
[1734954587789,0.052186,95920.0,95919.0,0.3608]
[1734954589091,0.052186,95920.0,95919.0,0.3698]
[1734954589494,0.412986,95920.0,95919.0,0.009]
[1734954589694,0.052191,95911.0,95910.0,0.18746565]
[1734954590393,0.052191,95911.0,95909.0,0.18746565]
[1734954590593,0.0411,95910.0,95909.0,0.18746565]
[1734954592194,0.052198,95899.0,95898.0,0.01121184]
[1734954592903,0.052195,95904.0,95900.0,0.052197]
[1734954593302,0.052195,95904.0,95898.0,0.01121184]
[1734954593501,0.052195,95904.0,95901.0,0.052196]
[1734954593695,0.12408953,95903.0,95901.0,0.052196]
[1734954594904,0.12608953,95903.0,95898.0,0.01121184]
[1734954595110,0.052197,95901.0,95898.0,0.01121184]
[1734954595705,0.052197,95900.0,95898.0,0.01121184]
[1734954596499,0.14517668,95900.0,95898.0,0.01121184]
[1734954597795,0.14617668,95900.0,95898.0,0.01121184]
[1734954597998,0.09397968,95900.0,95898.0,0.01121184]
[1734954598206,0.052198,95899.0,95898.0,0.01121184]
[1734954599405,0.056198,95899.0,95898.0,0.01121184]
[1734954600093,0.057198,95899.0,95898.0,0.01121184]
[1734954600702,0.057198,95899.0,95898.0,0.06340984]
[1734954601504,0.005,95899.0,95898.0,0.06340984]
[1734954602808,0.09297968,95903.0,95902.0,0.052196]
[1734954603908,0.052195,95904.0,95903.0,0.052196]
[1734954604107,0.052195,95904.0,95903.0,0.412996]
[1734954606104,0.002,95904.0,95903.0,0.412996]
[1734954607310,0.007,95904.0,95903.0,0.412996]
[1734954608300,0.059195,95904.0,95903.0,0.412996]
[1734954610206,0.007,95904.0,95903.0,0.412996]
[1734954616706,0.007,95904.0,95903.0,0.66308713]
[1734954618014,0.007,95904.0,95903.0,0.412996]
[1734954630026,0.007,95904.0,95903.0,0.72560991]
[1734954631024,0.007,95904.0,95903.0,0.9327534]
[1734954632624,0.007,95904.0,95903.0,0.62013949]
[1734954641529,0.09297968,95912.0,95903.0,0.62013949]
[1734954641824,0.09297968,95912.0,95911.0,0.412991]
[1734954642033,0.12408953,95917.0,95916.0,0.052188]
[1734954643428,0.00156422,95921.0,95918.0,0.052187]
[1734954643429,0.12408953,95919.0,95918.0,0.052187]
[1734954644619,0.12508953,95919.0,95918.0,0.061187]
[1734954644835,0.001,95919.0,95918.0,0.061187]
[1734954645831,0.001,95919.0,95918.0,0.065187]
[1734954646435,0.001,95919.0,95918.0,0.063187]
[1734954647139,0.12565375,95921.0,95918.0,0.25233556]
[1734954647332,0.12565375,95921.0,95920.0,0.052186]
[1734954648640,0.13165375,95921.0,95920.0,0.052186]
[1734954661633,5.3e-07,95921.0,95920.0,0.052186]
[1734954661835,0.18539318,95935.0,95934.0,0.052179]
[1734954662149,0.21489363,95949.0,95948.0,0.052171]
[1734954662641,0.21489363,95949.0,95946.0,0.3608]
[1734954662851,0.21489363,95949.0,95919.0,0.25033556]
[1734954662852,0.21489363,95949.0,95926.0,0.36236362]
[1734954663038,0.41564266,95940.0,95926.0,0.41454662]
[1734954663245,0.052178,95935.0,95934.0,0.008]
[1734954663950,0.052178,95935.0,95934.0,0.003]
[1734954664461,0.052178,95935.0,95934.0,0.011]
[1734954683265,0.052182,95927.0,95926.0,0.00156362]
[1734954683462,0.052184,95925.0,95924.0,0.18754815]
[1734954684967,0.052184,95925.0,95910.0,0.01091422]
[1734954684968,0.052189,95915.0,95914.0,0.54834815]
[1734954686171,0.14508817,95915.0,95914.0,0.3608]
[1734954686661,0.15008817,95915.0,95914.0,0.3608]
[1734954687371,0.15208817,95915.0,95914.0,0.3608]
[1734954688968,0.059189,95915.0,95914.0,0.3608]
[1734954691779,0.15208817,95915.0,95914.0,0.3608]
[1734954693776,0.15208817,95915.0,95914.0,0.4004]
[1734954694378,0.007,95915.0,95914.0,0.4004]
[1734954694571,0.09289917,95918.0,95914.0,0.4004]
[1734954694782,0.09289917,95918.0,95917.0,0.052188]
[1734954695172,0.02979917,95918.0,95917.0,0.052188]
[1734954695369,0.052184,95925.0,95917.0,0.052188]
[1734954695370,0.003,95927.0,95926.0,0.052183]
[1734954695572,0.003,95927.0,95926.0,0.412983]
[1734954695874,0.56782163,95943.0,95941.0,0.052175]
[1734954696269,0.56782163,95943.0,95942.0,0.0388]
[1734954696474,0.51564763,95943.0,95942.0,0.0388]
[1734954697372,0.3608,95943.0,95942.0,0.0388]
[1734954697569,0.3608,95943.0,95942.0,0.0428]
[1734954697978,0.3608,95943.0,95942.0,0.0458]
[1734954698281,0.3608,95953.0,95942.0,0.4086]
[1734954698573,0.052169,95952.0,95943.0,0.08355406]
[1734954698774,0.052169,95952.0,95948.0,0.052171]
[1734954699179,0.05217,95951.0,95948.0,0.052171]
[1734954699970,0.05217,95951.0,95948.0,0.053171]
[1734954700281,0.052166,95958.0,95950.0,0.3608]
[1734954700465,0.052167,95955.0,95952.0,0.052168]
[1734954701375,0.00156367,95963.0,95952.0,0.052168]
[1734954701574,0.052168,95954.0,95952.0,0.052168]
[1734954702478,0.052168,95954.0,95952.0,0.053168]
[1734954703078,0.052168,95954.0,95952.0,0.056168]
[1734954703580,0.052168,95954.0,95952.0,0.057168]
[1734954704377,0.052168,95954.0,95952.0,0.06782617]
[1734954708269,0.052165,95960.0,95958.0,0.052166]
[1734954708569,0.00156367,95963.0,95952.0,0.01565817]
[1734954708775,0.052167,95956.0,95953.0,0.052168]
[1734954709076,0.052167,95956.0,95954.0,0.052167]
[1734954710285,0.052167,95956.0,95954.0,0.053167]
[1734954716483,0.00156367,95963.0,95954.0,0.001]
[1734954716688,0.3608,95969.0,95961.0,0.412964]
[1734954716996,0.0771,95983.0,95964.0,0.052161]
[1734954717185,0.0771,95983.0,95961.0,0.3608]
[1734954717186,0.052163,95962.0,95961.0,0.3608]
[1734954717377,0.052165,95959.0,95958.0,0.052165]
[1734954725583,0.039,95961.0,95956.0,0.24979954]
[1734954725896,0.052166,95957.0,95956.0,0.24979954]
[1734954726098,0.0396,95960.0,95952.0,0.32357763]
[1734954726391,0.052168,95953.0,95952.0,0.31291946]
[1734954726993,0.052168,95953.0,95952.0,0.25161946]
[1734954727597,0.052169,95951.0,95950.0,0.3608]
[1734954729203,0.053169,95951.0,95950.0,0.3608]
[1734954731298,0.053169,95951.0,95944.0,0.18737548]
[1734954731500,0.052173,95945.0,95944.0,0.18737548]
[1734954732903,0.052174,95942.0,95941.0,0.3608]
[1734954734903,0.052176,95939.0,95938.0,0.18737548]
[1734954735402,0.052176,95939.0,95937.0,0.23955248]
[1734954735699,0.001,95942.0,95941.0,0.052175]
[1734954736401,0.052173,95945.0,95944.0,0.052173]
[1734954736989,0.12384352,95956.0,95942.0,0.052174]
[1734954737205,0.12384352,95956.0,95955.0,0.052167]
[1734954737905,0.05372772,95962.0,95961.0,0.052164]
[1734954738702,0.05372772,95962.0,95961.0,0.412964]
[1734954738894,0.05372772,95962.0,95961.0,0.3608]
[1734954739307,0.00156372,95962.0,95959.0,0.18737548]
[1734954739515,0.052165,95960.0,95959.0,0.18737548]
[1734954740299,0.052165,95960.0,95958.0,0.052165]
[1734954741407,0.052165,95960.0,95959.0,0.18737548]
[1734954741703,0.001,95960.0,95959.0,0.18737548]
[1734954742402,0.00156372,95962.0,95959.0,0.18737548]
[1734954742595,0.00156372,95962.0,95961.0,0.3608]
[1734954743409,0.05372672,95962.0,95960.0,0.052165]
[1734954744805,0.05472672,95962.0,95960.0,0.052165]
[1734954747508,0.05472672,95962.0,95960.0,0.23936181]
[1734954748210,0.05472672,95962.0,95961.0,0.052164]
[1734954749206,0.052165,95960.0,95959.0,0.18719681]
[1734954750410,0.052165,95959.0,95958.0,0.18719681]
[1734954752006,0.052167,95955.0,95954.0,0.01090041]
[1734954752203,0.052169,95952.0,95951.0,0.18719681]
[1734954753014,0.001,95959.0,95949.0,0.08353607]
[1734954753217,0.05217,95950.0,95949.0,0.01061785]
[1734954753518,0.052171,95949.0,95948.0,0.052171]
[1734954754315,0.052171,95949.0,95948.0,0.0630053]
[1734954754527,0.052167,95956.0,95955.0,0.052167]
[1734954754822,0.052164,95961.0,95957.0,0.052166]
[1734954755005,0.052165,95960.0,95957.0,0.052166]
[1734954755208,0.052165,95959.0,95957.0,0.052166]
[1734954755406,0.052165,95959.0,95952.0,0.3608]
[1734954755616,0.052165,95959.0,95958.0,0.052166]
[1734954759621,0.052165,95959.0,95958.0,0.06301056]
[1734954760006,0.052165,95959.0,95958.0,0.01084456]
[1734954760211,0.052167,95955.0,95954.0,0.18726757]
[1734954760614,0.052169,95952.0,95951.0,0.24983398]
[1734954760912,0.052169,95952.0,95951.0,0.07503698]
[1734954761111,0.052169,95952.0,95928.0,0.43738878]
[1734954761112,0.052175,95940.0,95928.0,0.43738878]
[1734954761311,0.052181,95929.0,95928.0,0.43738878]
[1734954761516,0.412981,95929.0,95928.0,0.43654878]
[1734954762415,0.052184,95924.0,95923.0,0.0006]
[1734954762614,0.052184,95924.0,95922.0,0.18738299]
[1734954763915,0.052192,95909.0,95902.0,0.12191841]
[1734954765113,0.052192,95909.0,95908.0,0.3748]
[1734954769015,0.052192,95909.0,95908.0,0.014]
[1734954775618,0.052196,95903.0,95902.0,0.0372]
[1734954776830,0.052196,95903.0,95902.0,0.0432]
[1734954777222,0.052196,95903.0,95902.0,0.0522]
[1734954783128,0.052196,95903.0,95902.0,0.015]
[1734954784535,0.052196,95903.0,95902.0,0.009]
[1734954784721,0.053196,95903.0,95902.0,0.009]
[1734954785829,0.054196,95903.0,95901.0,0.01050176]
[1734954786029,0.002,95903.0,95899.0,0.037]
[1734954786328,0.052197,95900.0,95899.0,0.037]
[1734954787426,0.053197,95900.0,95899.0,0.037]
[1734954787628,0.054197,95900.0,95899.0,0.037]
[1734954787830,0.054197,95900.0,95899.0,0.04783576]
[1734954789131,0.055197,95900.0,95899.0,0.037]
[1734954789931,0.054197,95900.0,95899.0,0.037]
[1734954790128,0.056197,95900.0,95899.0,0.037]
[1734954791329,0.21111218,95900.0,95899.0,0.037]
[1734954792535,0.21011218,95900.0,95899.0,0.037]
[1734954792735,0.20811218,95900.0,95899.0,0.089198]
[1734954792934,0.11033128,95900.0,95899.0,0.089198]
[1734954793430,0.10833128,95900.0,95899.0,0.089198]
[1734954793830,0.18589822,95905.0,95899.0,0.089198]
[1734954794030,0.21489363,95916.0,95904.0,0.3608]
[1734954794238,0.052188,95918.0,95917.0,0.052188]
[1734954795140,0.052188,95918.0,95917.0,0.090788]
[1734954796827,0.052188,95918.0,95917.0,0.091788]
[1734954798835,0.052188,95918.0,95917.0,0.090788]
[1734954799640,0.052188,95918.0,95917.0,0.092788]
[1734954800836,0.052188,95918.0,95917.0,0.10340418]
[1734954801030,0.12431273,95921.0,95920.0,0.052186]
[1734954802433,0.12431273,95921.0,95920.0,0.053186]
[1734954802635,0.17649773,95922.0,95920.0,0.053186]
[1734954803442,0.052185,95922.0,95920.0,0.053186]
[1734954805646,0.052185,95922.0,95920.0,0.052186]
[1734954807145,0.052185,95922.0,95921.0,0.052186]
[1734954809642,0.12431273,95927.0,95921.0,0.052186]
[1734954809842,0.17649573,95927.0,95925.0,0.052183]
[1734954810139,0.052183,95926.0,95917.0,0.04921618]
[1734954810345,0.052183,95926.0,95923.0,0.052185]
[1734954811046,0.052183,95926.0,95917.0,0.04921618]
[1734954811439,0.052183,95926.0,95925.0,0.052184]
[1734954812841,0.053183,95926.0,95925.0,0.052184]
[1734954813244,0.054183,95926.0,95925.0,0.052184]
[1734954814649,0.002,95926.0,95925.0,0.052184]
[1734954814848,0.003,95926.0,95925.0,0.052184]
[1734954815247,0.054183,95926.0,95925.0,0.052184]
[1734954815447,0.055183,95926.0,95925.0,0.052184]
[1734954815644,0.054183,95926.0,95925.0,0.052184]
[1734954816556,0.001,95926.0,95925.0,0.412984]
[1734954817254,0.12431273,95927.0,95925.0,0.3608]
[1734954817458,0.12431273,95927.0,95926.0,0.052183]
[1734954817645,0.12431273,95927.0,95926.0,0.091283]
[1734954818046,0.09319282,95934.0,95933.0,0.052179]
[1734954818246,0.09319282,95934.0,95933.0,0.412979]
[1734954819153,0.09619282,95934.0,95933.0,0.412979]
[1734954819342,0.003,95934.0,95933.0,0.412979]
[1734954819955,0.003,95934.0,95933.0,0.42365562]
[1734954820654,0.005,95934.0,95933.0,0.42365562]
[1734954828469,0.005,95934.0,95933.0,0.6109535]
[1734954828967,0.057179,95934.0,95933.0,0.6109535]
[1734954829569,0.057179,95934.0,95933.0,0.42365562]
[1734954830272,0.057179,95934.0,95933.0,0.01067662]
[1734954830475,0.005,95934.0,95932.0,0.23947688]
[1734954830671,0.005,95934.0,95932.0,0.052179]
[1734954830672,0.052179,95933.0,95932.0,0.052179]
[1734954831374,0.052179,95933.0,95932.0,0.06268274]
[1734954831673,0.054179,95933.0,95932.0,0.06268274]
[1734954831879,0.057179,95933.0,95932.0,0.06268274]
[1734954832570,0.057179,95933.0,95926.0,0.18729788]
[1734954832771,0.052182,95927.0,95926.0,0.19775082]
[1734954834681,0.052182,95927.0,95926.0,0.01045294]
[1734954834876,0.09319282,95929.0,95925.0,0.3608]
[1734954835078,0.052183,95926.0,95925.0,0.3608]
[1734954835278,0.052183,95926.0,95925.0,0.37114593]
[1734954835673,0.052183,95926.0,95925.0,0.42332993]
[1734954837683,0.052183,95926.0,95925.0,0.01034593]
[1734954837878,0.09319282,95929.0,95921.0,0.052186]
[1734954837879,0.052184,95924.0,95921.0,0.052186]
[1734954838079,0.052184,95924.0,95922.0,0.052185]
[1734954839176,0.052184,95924.0,95923.0,0.052185]
[1734954839984,0.052184,95924.0,95923.0,0.412985]
[1734954841378,0.052184,95924.0,95923.0,0.413985]
[1734954841981,0.052184,95924.0,95923.0,0.412985]
[1734954842989,0.053184,95924.0,95923.0,0.412985]
[1734954843686,0.001,95924.0,95923.0,0.412985]
[1734954844480,0.14537582,95927.0,95926.0,0.052183]
[1734954845468,0.052184,95924.0,95923.0,0.3618]
[1734954845669,0.052184,95924.0,95923.0,0.3608]
[1734954846479,0.052184,95924.0,95923.0,0.412985]
[1734954847182,0.052184,95924.0,95923.0,0.3608]
[1734954847381,0.053184,95924.0,95923.0,0.3608]
[1734954848175,0.052184,95924.0,95923.0,0.3608]
[1734954848376,0.052184,95924.0,95923.0,0.412985]
[1734954848578,0.053184,95924.0,95923.0,0.412985]
[1734954849687,0.054184,95924.0,95923.0,0.412985]
[1734954850481,0.002,95924.0,95923.0,0.412985]
[1734954851084,0.12431273,95927.0,95926.0,0.052183]
[1734954852079,0.09320805,95933.0,95932.0,0.05218]
[1734954852280,0.09320805,95933.0,95932.0,0.41298]
[1734954853587,0.052178,95935.0,95934.0,0.052179]
[1734954854979,0.12431273,95936.0,95934.0,0.052179]
[1734954855481,0.12431273,95936.0,95935.0,0.0401]
[1734954856588,0.09324876,95937.0,95936.0,0.052178]
[1734954857486,0.1113281,95941.0,95940.0,0.052175]
[1734954857785,0.1113281,95944.0,95943.0,0.052174]
[1734954859387,0.18633403,95956.0,95942.0,0.24972389]
[1734954859577,0.20766673,95958.0,95955.0,0.052167]
[1734954859774,0.15550073,95958.0,95955.0,0.052167]
[1734954859974,0.052166,95957.0,95955.0,0.052167]
[1734954860179,0.15550073,95958.0,95949.0,0.3608]
[1734954860379,0.05217,95951.0,95949.0,0.3608]
[1734954861386,0.05217,95950.0,95949.0,0.007]
[1734954861890,0.052172,95947.0,95946.0,0.18736944]
[1734954862091,0.052174,95942.0,95941.0,0.18736944]
[1734954863391,0.0426,95947.0,95937.0,0.052177]
[1734954863586,0.052176,95939.0,95937.0,0.052177]
[1734954864675,0.057176,95939.0,95937.0,0.052177]
[1734954865087,0.005,95939.0,95937.0,0.01071788]
[1734954865291,0.005,95939.0,95935.0,0.00156343]
[1734954865487,0.052178,95936.0,95935.0,0.00156343]
[1734954865886,0.0438,95939.0,95930.0,0.18736944]
[1734954865887,0.05218,95931.0,95930.0,0.18736944]
[1734954866281,0.05218,95931.0,95924.0,0.3608]
[1734954866282,0.05218,95931.0,95929.0,0.18736944]
[1734954866487,0.0366,95930.0,95929.0,0.18736944]
[1734954867994,0.052184,95925.0,95924.0,0.3608]
[1734954869393,0.053184,95925.0,95924.0,0.3608]
[1734954870694,0.054184,95925.0,95924.0,0.3608]
[1734954878599,0.052184,95924.0,95916.0,0.052188]
[1734954878783,0.052187,95920.0,95916.0,0.052188]
[1734954878989,0.052187,95919.0,95916.0,0.052188]
[1734954879588,0.052187,95919.0,95916.0,0.053188]
[1734954879790,0.052187,95919.0,95918.0,0.052187]
[1734954881199,0.052187,95919.0,95918.0,0.053187]
[1734954886301,0.053187,95919.0,95918.0,0.053187]
[1734954886896,0.054187,95919.0,95918.0,0.052187]
[1734954887895,0.002,95919.0,95916.0,0.01052908]
[1734954888103,0.002,95919.0,95913.0,0.3608]
[1734954888403,0.052189,95915.0,95913.0,0.3608]
[1734954888602,0.052189,95915.0,95913.0,0.37148565]
[1734954889403,0.0368,95924.0,95913.0,0.37148565]
[1734954889589,0.05219,95914.0,95913.0,0.3608]
[1734954891299,0.05219,95914.0,95913.0,0.3638]
[1734954892097,0.05519,95914.0,95913.0,0.3608]
[1734954892297,0.06019,95914.0,95913.0,0.3608]
[1734954892697,0.05519,95914.0,95913.0,0.3608]
[1734954892911,0.05619,95914.0,95913.0,0.3608]
[1734954893295,0.05319,95914.0,95913.0,0.3608]
[1734954893618,0.05519,95914.0,95907.0,0.18736944]
[1734954893902,0.052193,95908.0,95907.0,0.18736944]
[1734954894495,0.052194,95905.0,95904.0,0.0374]
[1734954895106,0.052194,95905.0,95904.0,0.089595]
[1734954895304,0.052194,95905.0,95904.0,0.10005141]
[1734954895808,0.15850073,95914.0,95904.0,0.04785641]
[1734954896106,0.052192,95910.0,95909.0,0.052192]
[1734954898403,0.053192,95910.0,95909.0,0.052192]
[1734954898806,0.054192,95910.0,95909.0,0.052192]
[1734954901407,0.002,95910.0,95909.0,0.412992]
[1734954902805,0.001,95910.0,95909.0,0.412992]
[1734954903004,0.001,95910.0,95909.0,0.413992]
[1734954903809,0.053192,95910.0,95909.0,0.413992]
[1734954904706,0.053192,95910.0,95909.0,0.412992]
[1734954904907,0.052192,95910.0,95909.0,0.413992]
[1734954905208,0.052192,95910.0,95909.0,0.412992]
[1734954905508,0.053192,95910.0,95909.0,0.412992]
[1734954905696,0.054192,95910.0,95909.0,0.412992]
[1734954910910,0.053192,95910.0,95909.0,0.412992]
[1734954911295,0.053192,95910.0,95909.0,0.3608]
[1734954911501,0.052192,95910.0,95909.0,0.3608]
[1734954911907,0.053192,95910.0,95909.0,0.3608]
[1734954912202,0.054192,95910.0,95909.0,0.3608]
[1734954912510,0.053192,95910.0,95909.0,0.3608]
[1734954912712,0.054192,95910.0,95909.0,0.3608]
[1734954917114,0.053192,95910.0,95909.0,0.3608]
[1734954917314,0.054192,95910.0,95909.0,0.3608]
[1734954917912,0.053192,95910.0,95909.0,0.3608]
[1734954918120,0.054192,95910.0,95909.0,0.3608]
[1734954918507,0.052192,95910.0,95909.0,0.3608]
[1734954918707,0.053192,95910.0,95909.0,0.3608]
[1734954920013,0.053192,95910.0,95909.0,0.54838753]
[1734954920604,0.053192,95910.0,95909.0,0.60057953]
[1734954921208,0.053192,95910.0,95909.0,0.412992]
[1734954921510,0.001,95910.0,95909.0,0.412992]
[1734954921915,0.002,95910.0,95909.0,0.412992]
[1734954922410,0.12651826,95910.0,95909.0,0.412992]
[1734954922818,0.12651826,95910.0,95909.0,0.413992]
[1734954922819,0.12551826,95910.0,95909.0,0.413992]
[1734954923014,0.17771026,95910.0,95909.0,0.3618]
[1734954923212,0.052194,95905.0,95904.0,0.19914227]
[1734954923415,0.052198,95899.0,95898.0,0.00010324]
[1734954924009,0.052206,95884.0,95883.0,0.21069389]
[1734954925217,0.052206,95884.0,95882.0,0.0006]
[1734954925516,0.052207,95882.0,95881.0,0.25026028]
[1734954926706,0.3608,95885.0,95876.0,0.01054948]
[1734954927014,0.052211,95875.0,95874.0,0.00156446]
[1734954928422,0.053211,95875.0,95874.0,0.00956446]
[1734954928622,0.053211,95875.0,95874.0,0.02014127]
[1734954928822,0.053211,95875.0,95874.0,0.00956446]
[1734954929822,0.053211,95875.0,95874.0,0.01256446]
[1734954930416,0.053211,95875.0,95874.0,0.00956446]
[1734954930623,0.053211,95875.0,95874.0,0.01256446]
[1734954931420,0.052214,95869.0,95854.0,0.052222]
[1734954933020,0.052214,95869.0,95862.0,0.01077663]
[1734954933531,0.052214,95869.0,95862.0,0.06299363]
[1734954933826,0.052214,95869.0,95868.0,0.3698]
[1734954933827,0.053214,95869.0,95868.0,0.3698]
[1734954934331,0.056214,95869.0,95868.0,0.3628]
[1734954935130,0.057214,95869.0,95868.0,0.3638]
[1734954935625,0.057214,95869.0,95868.0,0.3618]
[1734954935927,0.007,95869.0,95868.0,0.3618]
[1734954936426,0.12389726,95876.0,95868.0,0.4047]
[1734954936622,0.17610426,95883.0,95868.0,0.4047]
[1734954936825,0.12389726,95883.0,95869.0,0.052214]
[1734954937023,0.12389726,95883.0,95877.0,0.05221]
[1734954937222,0.12389726,95883.0,95878.0,0.094009]
[1734954937729,0.12389726,95883.0,95882.0,0.3608]
[1734954938120,0.052206,95884.0,95882.0,0.3608]
[1734954938522,0.004,95883.0,95882.0,0.3608]
[1734954938828,0.004,95883.0,95882.0,0.413007]
[1734954939020,0.009,95883.0,95882.0,0.414007]
[1734954939531,0.003,95884.0,95882.0,0.413007]
[1734954940230,0.002,95884.0,95882.0,0.413007]
[1734954942227,0.052203,95890.0,95882.0,0.3608]
[1734954942927,0.12389726,95893.0,95892.0,0.052202]
[1734954944029,0.052199,95897.0,95892.0,0.052202]
[1734954944330,0.00012954,95899.0,95887.0,0.08359869]
[1734954944529,0.00012954,95899.0,95897.0,0.052198]
[1734954945034,0.00012954,95899.0,95898.0,0.0427]
[1734954946026,0.00312954,95899.0,95898.0,0.0427]
[1734954946229,0.01012954,95899.0,95898.0,0.0437]
[1734954948424,0.01012954,95899.0,95898.0,0.0836]
[1734954949736,0.01012954,95899.0,95898.0,0.135798]
[1734954950146,0.01012954,95899.0,95898.0,0.14605384]
[1734954950270,0.06232754,95899.0,95898.0,0.14605384]
[1734954953441,0.01012954,95899.0,95898.0,0.14605384]
[1734954958040,0.06232754,95899.0,95898.0,0.001]
[1734954962649,0.1862248,95899.0,95898.0,0.001]
[1734954963862,0.06232754,95899.0,95898.0,0.001]
[1734954965051,0.01012954,95899.0,95898.0,0.053198]
[1734954967457,0.13446191,95899.0,95898.0,0.053198]
[1734954968959,0.01012954,95899.0,95898.0,0.053198]
[1734954970053,0.13446191,95899.0,95898.0,0.053198]
[1734954971258,0.01012954,95899.0,95898.0,0.053198]
[1734954975763,0.00312954,95899.0,95898.0,0.052198]
[1734954976160,0.00012954,95899.0,95898.0,0.052198]
[1734954980557,0.15502286,95903.0,95898.0,0.052198]
[1734954980869,0.15502286,95903.0,95902.0,0.052196]
[1734954981459,0.09072286,95903.0,95902.0,0.052196]
[1734954981666,0.18633403,95909.0,95902.0,0.052196]
[1734954981862,0.09344393,95906.0,95905.0,0.052194]
[1734954982166,0.09344393,95906.0,95905.0,0.412994]
[1734954983071,0.09344393,95911.0,95909.0,0.052192]
[1734954984167,0.09344393,95913.0,95912.0,0.052191]
[1734954985269,0.1245919,95917.0,95916.0,0.052188]
[1734954985470,0.1245919,95917.0,95916.0,0.412988]
[1734954986464,0.1767799,95918.0,95916.0,0.412988]
[1734954986660,0.2175799,95918.0,95916.0,0.412988]
[1734954987374,0.003,95917.0,95916.0,0.412988]
[1734954987575,0.1275919,95917.0,95916.0,0.412988]
[1734954987876,0.1255919,95917.0,95916.0,0.412988]
[1734954988675,0.1285919,95917.0,95916.0,0.412988]
[1734954989073,0.1275919,95917.0,95916.0,0.412988]
[1734954989973,0.1285919,95917.0,95916.0,0.412988]
[1734954991164,0.1255919,95917.0,95916.0,0.412988]
[1734954991368,0.1285919,95917.0,95916.0,0.412988]